bitfinex/quotes_ETHUSD_20240921
["timestamp","ask_amount","ask_price","bid_price","bid_amount"]
[1726940206317,0.55,2572.6,2572.2,0.57878961]
[1726940206547,0.55,2572.6,2572.3,0.13218584]
[1726940206966,0.55,2572.6,2572.2,0.57878961]
[1726940207263,0.55,2572.6,2572.4,0.13214717]
[1726940207482,7.43,2573.1,2572.5,0.57878961]
[1726940207765,0.00382379,2573.3,2572.8,3.0]
[1726940207923,1.05899129,2573.3,2572.8,3.0]
[1726940208124,1.05899129,2573.3,2572.9,0.13205485]
[1726940212790,0.00382379,2573.3,2572.9,0.13205485]
[1726940216052,0.55,2573.1,2573.0,0.12295971]
[1726940216601,0.55,2573.1,2572.2,11.5493]
[1726940216892,0.55,2573.1,2572.2,12.09664155]
[1726940217065,0.55,2572.9,2572.3,0.12323032]
[1726940217269,0.55,2572.9,2572.3,3.12323032]
[1726940217996,9.4286,2572.8,2572.3,3.12323032]
[1726940218668,0.55,2572.7,2572.3,3.12323032]
[1726940224287,0.55,2572.7,2572.4,0.0024]
[1726940224465,0.99786,2572.6,2572.4,0.0024]
[1726940224666,0.99786,2572.6,2572.5,0.12315299]
[1726940227419,9.4286,2572.8,2572.5,0.12315299]
[1726940227621,9.8655,2573.1,2572.5,0.12315299]
[1726940227942,0.55,2573.0,2572.5,0.12315299]
[1726940228513,0.55,2573.0,2572.4,0.0024]
[1726940228672,1.04155,2572.9,2572.4,0.0024]
[1726940228872,1.04155,2572.9,2572.5,0.12346331]
[1726940231693,9.8655,2573.1,2572.6,9.0598]
[1726940231894,7.43,2573.3,2572.9,3.0]
[1726940232105,9.8655,2573.7,2572.9,3.0]
[1726940232304,9.8655,2573.7,2573.0,0.12320614]
[1726940233930,7.43,2573.8,2573.2,3.0]
[1726940234235,7.43,2573.8,2573.3,0.12295332]
[1726940234610,7.43,2573.8,2573.2,3.0]
[1726940234818,7.43,2573.8,2573.4,0.12291468]
[1726940235014,7.43,2574.1,2573.4,12.8348]
[1726940235227,7.43,2574.1,2573.4,16.0382625]
[1726940235409,7.43,2574.1,2573.4,15.38214155]
[1726940235619,7.43,2574.1,2573.4,14.95767514]
[1726940236203,7.43,2574.1,2573.4,15.50501669]
[1726940236530,7.43,2574.1,2573.4,16.03822296]
[1726940236735,7.43,2574.1,2573.4,15.50501669]
[1726940237044,0.00382379,2573.9,2573.4,15.50501669]
[1726940239105,0.08168594,2573.9,2573.4,12.95767514]
[1726940239306,0.08168594,2573.9,2573.4,0.12287514]
[1726940239510,9.9564987,2573.5,2572.9,0.54734155]
[1726940239808,10.64813683,2573.5,2573.0,0.12248536]
[1726940240224,0.55,2573.4,2573.0,0.12248536]
[1726940240615,0.55,2573.4,2572.6,9.8372]
[1726940240816,0.55,2573.4,2573.1,0.12244671]
[1726940241025,1.11981368,2573.3,2572.7,0.54734155]
[1726940241342,10.64813683,2573.5,2572.7,0.54974155]
[1726940241519,10.64813683,2573.5,2572.8,0.65576893]
[1726940241732,10.64813683,2573.5,2572.8,1.20311048]
[1726940241934,10.64813683,2573.5,2572.9,0.54734155]
[1726940242134,10.64813683,2573.5,2573.0,0.12248536]
[1726940242914,1.06481368,2573.4,2573.0,0.12248536]
[1726940243437,0.55,2573.3,2573.0,0.12248536]
[1726940243843,0.55,2573.3,2572.7,3.0]
[1726940244040,0.55,2573.3,2573.1,0.12244671]
[1726940244243,0.55,2573.3,2572.8,0.0024]
[1726940244445,0.55,2573.3,2573.2,0.12240807]
[1726940244759,1.77629505,2573.3,2573.2,0.12240807]
[1726940244925,1.77629505,2573.3,2572.7,3.0]
[1726940245253,1.77629505,2573.3,2572.8,0.12256266]
[1726940245679,1.77629505,2573.3,2572.7,3.0]
[1726940245979,1.77629505,2573.3,2572.8,0.12256266]
[1726940246572,1.77629505,2573.3,2572.9,0.12252401]
[1726940246933,1.77629505,2573.3,2572.7,3.0]
[1726940247128,1.77629505,2573.3,2572.8,0.12256266]
[1726940247332,1.77629505,2573.3,2572.7,4.08054782]
[1726940247536,1.77629505,2573.3,2572.8,0.12256266]
[1726940247730,1.22629505,2573.3,2572.8,0.53320627]
[1726940248077,10.64813683,2573.5,2572.9,0.12252401]
[1726940248439,10.64813683,2573.5,2572.7,3.0]
[1726940248639,10.64813683,2573.5,2573.0,0.12248536]
[1726940248973,0.55,2573.4,2573.1,0.12244671]
[1726940249340,0.55,2573.2,2572.9,0.0024]
[1726940249536,1.0483,2573.1,2573.0,0.12248536]
[1726940250073,1.0483,2573.1,2572.7,0.0024]
[1726940250282,1.0483,2573.1,2573.0,0.12248536]
[1726940250440,1.0483,2573.1,2572.7,0.0024]
[1726940250641,1.0483,2573.1,2573.0,0.12248536]
[1726940250852,1.0483,2573.1,2572.9,0.0024]
[1726940251174,1.0483,2573.1,2573.0,0.12248536]
[1726940252732,9.933,2573.3,2573.0,0.12248536]
[1726940256591,9.933,2573.3,2572.6,3.0]
[1726940256807,0.55,2573.2,2573.1,0.12272038]
[1726940257009,0.55,2573.2,2572.6,3.0]
[1726940257214,1.0483,2573.1,2572.6,3.0]
[1726940258988,10.483,2573.0,2572.4,1.08054782]
[1726940260471,10.483,2573.0,2572.5,0.1229523]
[1726940261286,10.483,2573.0,2572.3,3.0]
[1726940261812,10.483,2573.0,2572.4,0.12299097]
[1726940262108,1.15313,2572.9,2572.4,0.67033252]
[1726940263022,1.15313,2572.9,2572.4,1.20353879]
[1726940266428,1.15313,2572.9,2572.4,0.67033252]
[1726940267426,9.933,2573.0,2572.4,0.67033252]
[1726940267728,9.933,2573.0,2572.6,3.0]
[1726940268155,9.933,2573.0,2572.7,0.12335554]
[1726940268324,0.55,2573.3,2572.7,0.12335554]
[1726940269255,17.2171,2573.4,2572.7,0.12335554]
[1726940270342,17.2171,2573.4,2572.9,3.0]
[1726940270539,9.7871,2573.4,2573.0,0.12323958]
[1726940271710,0.0378987,2573.5,2573.0,0.12323958]
[1726940271923,0.0378987,2573.5,2573.1,9.9197]
[1726940272262,0.0378987,2573.5,2573.2,3.12306798]
[1726940278187,0.0378987,2573.5,2573.2,3.67040953]
[1726940278387,0.0378987,2573.5,2573.4,12.9197]
[1726940278588,0.0378987,2573.5,2573.4,13.04246561]
[1726940281500,0.0378987,2573.5,2573.4,13.58980716]
[1726940281886,0.0378987,2573.5,2573.4,14.06180346]
[1726940284198,0.0378987,2573.5,2573.4,17.39174254]
[1726940285001,0.0378987,2573.5,2573.4,14.06180346]
[1726940285328,0.0378987,2573.5,2573.4,17.39174254]
[1726940286825,0.0378987,2573.5,2573.4,17.3824649]
[1726940288226,0.0378987,2573.5,2573.4,10.58052952]
[1726940288905,0.0378987,2573.5,2573.4,0.12276561]
[1726940289089,0.0378987,2573.5,2573.2,2.0]
[1726940289292,0.0378987,2573.5,2573.3,0.54734155]
[1726940289539,0.0378987,2573.5,2573.3,0.66984171]
[1726940290511,0.0378987,2573.5,2573.3,3.66984171]
[1726940290694,0.0378987,2573.5,2573.3,0.66984171]
[1726940291201,0.0378987,2573.5,2573.3,0.12250016]
[1726940291403,0.0378987,2573.5,2573.0,3.54734155]
[1726940291607,0.0378987,2573.5,2573.1,0.12248927]
[1726940292427,0.0378987,2573.5,2573.1,0.66983082]
[1726940294216,0.03706469,2573.5,2573.1,0.66983082]
[1726940295013,0.03706469,2573.5,2573.2,0.54734155]
[1726940295202,0.03706469,2573.5,2573.1,0.64548557]
[1726940295399,0.03706469,2573.5,2573.1,0.12248927]
[1726940301219,0.03706469,2573.5,2573.3,3.0]
[1726940301424,0.03706469,2573.5,2573.3,3.07758203]
[1726940301646,0.03706469,2573.5,2573.4,0.12257704]
[1726940302462,0.03706469,2573.5,2573.4,12.48567704]
[1726940302665,9.40346469,2573.5,2573.4,0.12257704]
[1726940302960,9.40346469,2573.5,2573.2,2.0]
[1726940303319,9.40346469,2573.5,2573.3,0.12257919]
[1726940303515,9.40346469,2573.5,2573.2,2.0]
[1726940303961,9.40346469,2573.5,2573.3,0.12257919]
[1726940304258,9.40346469,2573.5,2573.2,2.0]
[1726940304461,9.40346469,2573.5,2573.4,0.12254055]
[1726940304617,9.40346469,2573.5,2573.3,0.12257919]
[1726940304819,9.40346469,2573.5,2573.4,0.12254055]
[1726940305270,9.40346469,2573.5,2573.2,2.0]
[1726940305563,9.40346469,2573.5,2573.3,0.12257919]
[1726940305843,9.40346469,2573.5,2573.2,2.0]
[1726940305993,0.03706469,2573.5,2573.4,0.12254055]
[1726940306194,0.03706469,2573.5,2573.2,2.0]
[1726940306403,0.03706469,2573.5,2573.3,0.12257919]
[1726940306555,0.03706469,2573.5,2573.2,2.0]
[1726940306747,0.03706469,2573.5,2573.3,0.12257919]
[1726940306962,0.03706469,2573.5,2573.2,2.0]
[1726940307254,0.03706469,2573.5,2573.3,0.12257919]
[1726940307689,0.03706469,2573.5,2573.0,3.0]
[1726940307860,0.03706469,2573.5,2573.4,0.12254055]
[1726940308062,0.03706469,2573.5,2573.0,3.0]
[1726940308285,0.03706469,2573.5,2573.4,0.12254055]
[1726940308480,0.03706469,2573.5,2573.0,3.0]
[1726940308794,0.03706469,2573.5,2573.1,0.48452324]
[1726940308996,0.03706469,2573.5,2573.2,0.12261783]
[1726940309361,0.03706469,2573.5,2573.2,0.60714107]
[1726940311258,0.03706469,2573.5,2573.3,3.0]
[1726940311654,0.03706469,2573.5,2573.4,0.12254055]
[1726940313872,9.45016469,2573.5,2573.4,0.12254055]
[1726940314072,10.39518116,2573.5,2573.4,0.12254055]
[1726940314270,10.39518116,2573.5,2573.1,3.0]
[1726940314895,10.39518116,2573.5,2573.2,0.12260263]
[1726940315306,10.39518116,2573.5,2573.0,3.0]
[1726940315508,10.39518116,2573.5,2573.3,0.12256399]
[1726940315795,9.4131,2573.3,2573.0,3.0]
[1726940316005,9.4131,2573.3,2572.8,3.33711502]
[1726940316204,9.4131,2573.3,2572.8,3.0]
[1726940316369,9.4131,2573.3,2572.7,3.0]
[1726940318891,9.9631,2573.2,2572.6,3.0]
[1726940319093,10.40941,2573.1,2572.6,3.0]
[1726940319295,10.40941,2573.1,2572.4,3.82163826]
[1726940320013,10.40941,2573.1,2572.4,3.82343488]
[1726940320195,9.4131,2573.1,2572.4,4.28620824]
[1726940320394,9.4131,2573.1,2572.5,3.9245582]
[1726940320600,9.4131,2573.1,2572.6,6.82343488]
[1726940320779,9.4131,2573.1,2572.7,0.58579735]
[1726940320980,9.4131,2573.1,2572.8,0.48452324]
[1726940321181,9.4131,2573.1,2572.9,0.12294668]
[1726940323621,10.35441,2573.1,2572.9,0.12294668]
[1726940323781,10.35441,2573.1,2572.5,3.0]
[1726940323978,10.35441,2573.1,2572.6,0.12279166]
[1726940324701,10.35441,2573.1,2572.7,0.48452324]
[1726940324939,9.6538,2573.4,2572.9,3.0]
[1726940325454,9.6538,2573.4,2573.0,0.122634]
[1726940326141,0.03706469,2573.5,2573.0,2.122634]
[1726940326768,0.03706469,2573.5,2573.2,3.0]
[1726940327052,0.03706469,2573.5,2573.3,0.12251807]
[1726940327401,9.69086469,2573.5,2573.2,3.0]
[1726940327601,9.69086469,2573.5,2573.3,0.12244202]
[1726940327814,9.69086469,2573.5,2573.2,3.0]
[1726940328010,9.69086469,2573.5,2573.1,9.2724]
[1726940328011,9.69086469,2573.5,2573.3,0.12244202]
[1726940328440,9.69086469,2573.5,2573.1,3.0]
[1726940328652,9.69086469,2573.5,2573.4,0.12240339]
[1726940328806,9.69086469,2573.5,2573.1,3.0]
[1726940329151,9.69086469,2573.5,2573.2,0.12248067]
[1726940329152,0.03706469,2573.5,2573.2,0.12248067]
[1726940335303,9.6538,2573.4,2573.2,0.12248067]
[1726940335942,9.6538,2573.4,2573.0,3.0]
[1726940336118,9.6538,2573.4,2573.3,0.12216528]
[1726940336316,9.6538,2573.4,2573.0,3.0]
[1726940336546,9.6538,2573.4,2573.3,0.12216832]
[1726940337049,9.6538,2573.4,2573.3,0.12220177]
[1726940337251,9.6538,2573.4,2572.9,3.0]
[1726940337449,9.6538,2573.4,2573.3,0.12223523]
[1726940337605,10.62288647,2573.4,2572.9,6.33443973]
[1726940337805,9.6538,2573.4,2573.0,0.12235116]
[1726940340505,9.6538,2573.4,2573.0,3.0]
[1726940340734,9.6538,2573.4,2573.1,0.12231251]
[1726940341708,9.6538,2573.4,2572.9,6.33585022]
[1726940341909,9.6538,2573.4,2573.2,0.12227387]
[1726940342154,10.62288647,2573.4,2573.0,0.60024087]
[1726940342309,10.62288647,2573.4,2573.3,0.12223523]
[1726940342509,10.62288647,2573.4,2573.0,0.60024087]
[1726940342745,10.62288647,2573.4,2573.3,0.12223523]
[1726940342951,10.62288647,2573.4,2573.0,0.60024087]
[1726940343252,9.6538,2573.4,2573.0,0.60024087]
[1726940343459,0.55,2573.3,2573.1,0.12231251]
[1726940343620,10.2038,2573.2,2573.1,0.12231251]
[1726940344312,10.2038,2573.2,2572.4,5.82037346]
[1726940344636,11.22418,2573.2,2572.4,2.48452324]
[1726940344811,11.22418,2573.2,2572.5,3.60717108]
[1726940346289,11.22418,2573.2,2572.5,4.2076925]
[1726940346718,11.22418,2573.2,2572.5,3.60717108]
[1726940348977,9.6538,2573.2,2572.5,3.60717108]
[1726940349143,9.6538,2573.2,2572.6,0.46277336]
[1726940349330,9.6538,2573.2,2572.6,0.9472966]
[1726940349529,9.6538,2573.2,2572.7,0.12257052]
[1726940351857,9.6538,2573.2,2572.7,0.1208652]
[1726940352039,0.96538,2573.1,2572.7,0.1208652]
[1726940352244,0.96538,2573.1,2572.4,5.0]
[1726940352452,0.96538,2573.1,2572.5,0.12098117]
[1726940353457,9.6538,2573.2,2572.6,10.16361911]
[1726940353747,9.6538,2573.2,2572.7,3.0]
[1726940353948,9.6538,2573.2,2572.7,3.60553963]
[1726940356183,9.6538,2573.2,2572.7,3.12101639]
[1726940357164,9.6538,2573.2,2572.7,0.12101639]
[1726940357483,0.96538,2573.1,2572.5,3.0]
[1726940357685,0.96538,2573.1,2572.8,0.12097773]
[1726940357922,0.96538,2573.1,2572.5,3.0]
[1726940358069,0.96538,2573.1,2572.9,0.12093908]
[1726940358468,0.96538,2573.1,2572.5,3.0]
[1726940358672,1.061918,2573.0,2572.5,3.0]
[1726940359187,9.6042,2572.9,2572.5,3.0]
[1726940359400,9.6042,2572.9,2572.6,0.12105504]
[1726940362661,1.061918,2573.0,2572.2,3.48452324]
[1726940362662,9.6042,2572.7,2572.2,3.48452324]
[1726940362906,9.6042,2572.7,2572.3,0.12117104]
[1726940363278,9.6042,2572.7,2572.2,3.48452324]
[1726940363585,9.6042,2572.7,2572.4,0.12102391]
[1726940363757,9.6042,2572.7,2572.3,0.12106258]
[1726940363957,10.56462,2572.7,2572.5,0.12098525]
[1726940364159,10.56462,2572.7,2572.2,3.48452324]
[1726940364808,10.56462,2572.7,2572.3,0.12113561]
[1726940365101,10.56462,2572.7,2572.2,3.48452324]
[1726940365257,10.56462,2572.7,2572.4,0.12109694]
[1726940365455,10.56462,2572.7,2572.2,3.48452324]
[1726940365456,1.056462,2572.6,2572.2,3.48452324]
[1726940365883,1.056462,2572.6,2572.3,0.12113561]
[1726940366272,9.6042,2572.7,2572.2,3.48452324]
[1726940366472,9.6042,2572.7,2572.4,0.12109694]
[1726940366690,9.6042,2572.7,2572.2,3.48452324]
[1726940366889,9.6042,2572.7,2572.5,0.12105828]
[1726940367289,9.6042,2572.7,2572.2,3.48452324]
[1726940367475,9.6042,2572.7,2572.6,0.12101962]
[1726940367676,10.56462,2572.7,2572.2,3.48452324]
[1726940368000,10.56462,2572.7,2572.6,0.12101962]
[1726940368699,10.56462,2572.7,2572.2,3.48452324]
[1726940368901,10.56462,2572.7,2572.6,0.12101962]
[1726940369216,10.56462,2572.7,2572.2,3.48452324]
[1726940369705,10.56462,2572.7,2572.3,0.12113561]
[1726940370109,10.56462,2572.7,2572.2,3.48452324]
[1726940370315,10.56462,2572.7,2572.4,0.12109694]
[1726940370518,9.6042,2572.7,2572.2,3.48452324]
[1726940370704,7.43,2573.1,2572.1,2.49159587]
[1726940370705,9.5717,2572.9,2572.5,1.09717739]
[1726940370892,9.5717,2572.9,2572.5,0.48452324]
[1726940371212,9.5717,2572.9,2572.6,0.12124474]
[1726940372975,9.5717,2572.9,2572.7,0.33494885]
[1726940373207,0.95717,2572.8,2572.6,0.12124474]
[1726940373413,0.95717,2572.8,2572.7,0.33494827]
[1726940373783,0.95717,2572.8,2572.6,0.33494827]
[1726940374126,0.95717,2572.8,2572.7,0.33494827]
[1726940374438,9.5717,2572.9,2572.7,0.33494827]
[1726940374591,9.5717,2572.9,2572.5,3.48452324]
[1726940374788,9.5717,2572.9,2572.5,0.48452324]
[1726940375007,9.5717,2572.9,2572.7,0.33490602]
[1726940376602,9.5717,2572.9,2572.2,3.49159587]
[1726940376803,0.95717,2572.8,2572.2,4.00364998]
[1726940377113,9.1213,2572.7,2572.2,4.00364998]
[1726940377276,9.1213,2572.7,2572.3,0.51205411]
[1726940380291,9.1213,2572.7,2572.4,0.12130686]
[1726940380493,9.1213,2572.7,2572.4,0.63336097]
[1726940380689,7.43,2573.4,2572.5,0.51205411]
[1726940380690,9.1213,2573.1,2572.5,0.51205411]
[1726940381092,0.55,2573.2,2572.6,0.12122953]
[1726940381625,9.1213,2572.9,2572.6,0.12122953]
[1726940381975,9.1213,2572.9,2572.2,1.00364998]
[1726940382217,9.1213,2572.9,2572.7,0.1211787]
[1726940382421,0.96713,2572.8,2572.2,1.00364998]
[1726940382776,0.96713,2572.8,2572.2,4.00364998]
[1726940384687,0.96713,2572.8,2572.3,0.51205411]
[1726940387482,9.1213,2572.9,2572.5,3.0]
[1726940387690,9.8472,2573.2,2572.6,0.51205411]
[1726940389984,9.8472,2573.2,2572.8,3.0]
[1726940395044,9.8472,2573.2,2572.6,0.51205411]
[1726940395194,0.74670647,2573.3,2572.4,5.0]
[1726940395195,9.8472,2573.0,2572.4,5.0]
[1726940395395,1.58972,2572.9,2572.7,0.1212152]
[1726940395720,1.58972,2572.9,2572.4,3.0]
[1726940395721,1.58972,2572.9,2572.4,3.51205411]
[1726940395918,1.58972,2572.9,2572.8,0.12111875]
[1726940396126,1.58972,2572.9,2572.4,3.51205411]
[1726940396313,1.58972,2572.9,2572.8,0.12111875]
[1726940396629,1.58972,2572.9,2572.4,3.51205411]
[1726940396826,0.55,2572.9,2572.8,0.12111875]
[1726940397009,0.55,2572.9,2572.5,3.51205411]
[1726940397314,0.55,2572.9,2572.5,0.51205411]
[1726940397517,0.55,2572.9,2572.6,0.12119606]
[1726940400739,0.55,2572.9,2572.6,0.63325017]
[1726940400945,1.03972,2572.9,2572.7,0.51205411]
[1726940401318,1.58972,2572.9,2572.8,0.12111875]
[1726940401624,1.58972,2572.9,2572.7,0.51205411]
[1726940401839,1.58972,2572.9,2572.8,0.12095999]
[1726940402439,1.58972,2572.9,2572.7,0.51205411]
[1726940402644,1.58972,2572.9,2572.8,0.12095999]
[1726940403052,1.58972,2572.9,2572.7,0.51205411]
[1726940403252,0.55,2572.9,2572.8,0.12095999]
[1726940403638,0.55,2572.9,2572.4,3.0]
[1726940404120,9.9532,2572.8,2572.5,0.12107597]
[1726940404451,0.55,2572.7,2572.5,0.12107597]
[1726940404811,0.55,2572.7,2572.2,0.51205411]
[1726940405011,9.9532,2572.8,2572.6,0.12101296]
[1726940405333,10.5032,2572.8,2572.7,0.12097431]
[1726940405944,10.5032,2572.8,2572.7,0.12098343]
[1726940406269,10.5032,2572.8,2572.3,3.49159587]
[1726940406449,10.5032,2572.8,2572.7,0.12098343]
[1726940406741,11.55352,2572.8,2572.7,0.12103211]
[1726940407058,11.55352,2572.8,2572.3,3.60152526]
[1726940407206,11.55352,2572.8,2572.7,0.12103211]
[1726940407405,11.55352,2572.8,2572.3,3.60152526]
[1726940407652,10.5032,2572.8,2572.7,0.12103211]
[1726940407808,10.5032,2572.8,2572.3,4.11357937]
[1726940408321,10.5032,2572.8,2572.4,0.12116635]
[1726940411830,0.62786215,2572.7,2572.4,0.12116635]
[1726940412031,0.55,2572.7,2572.4,0.12116635]
[1726940412231,1.12818215,2572.6,2572.4,0.12116635]
[1726940413157,1.12818215,2572.6,2572.1,0.60163923]
[1726940413158,10.5032,2572.5,2572.1,0.60163923]
[1726940413321,0.07786215,2572.4,2571.7,10.44033923]
[1726940413511,0.55,2572.3,2571.7,10.44033923]
[1726940413712,0.55,2572.1,2571.7,9.8387]
[1726940414125,0.55,2572.3,2571.8,0.49159587]
[1726940414327,0.55,2572.3,2571.8,1.0932351]
[1726940414729,0.55,2572.3,2571.8,4.54620587]
[1726940414932,0.55,2572.3,2571.8,3.94456664]
[1726940415925,1.60032,2572.3,2571.8,3.0]
[1726940416129,9.9532,2572.2,2571.8,3.0]
[1726940416852,0.55,2572.1,2571.6,0.60163923]
[1726940417057,0.55,2572.1,2571.5,12.8387]
[1726940417517,9.9532,2572.0,2571.5,12.8387]
[1726940417718,11.00352,2572.0,2571.5,12.8387]
[1726940418159,10.58106215,2571.9,2571.1,0.60163923]
[1726940418344,9.9532,2571.7,2570.9,0.60163923]
[1726940418604,10.5032,2571.6,2570.8,0.60163923]
[1726940418858,10.5032,2571.6,2570.7,0.60163923]
[1726940419066,0.55,2571.2,2570.7,0.94456664]
[1726940420937,0.55,2571.2,2570.8,0.11420759]
[1726940422963,9.9532,2571.1,2570.8,0.11420759]
[1726940423333,9.9532,2571.1,2570.7,0.49159587]
[1726940423644,9.9532,2571.1,2570.9,0.11416888]
[1726940423844,10.94852,2571.1,2570.8,0.11420759]
[1726940424046,10.94852,2571.1,2571.0,0.11413016]
[1726940424370,0.55,2570.8,2570.4,0.10641506]
[1726940424585,1.09391215,2570.7,2570.4,0.10641506]
[1726940424862,1.01605,2570.7,2570.5,0.11432375]
[1726940427838,0.55,2570.6,2570.5,0.11432375]
[1726940428857,9.6105,2570.9,2570.5,0.11432375]
[1726940429044,0.55,2570.8,2570.5,0.11432375]
[1726940429381,1.56605,2570.8,2570.5,0.11432375]
[1726940430671,1.56605,2570.8,2570.5,3.11432375]
[1726940432290,1.56605,2570.8,2570.5,3.15482545]
[1726940432592,7.43,2571.2,2570.6,0.45297077]
[1726940432768,9.6105,2571.4,2570.7,3.0]
[1726940432946,9.6105,2571.4,2570.7,3.15478517]
[1726940433634,7.43,2571.6,2570.9,2.0]
[1726940433740,7.43,2571.6,2571.1,3.0]
[1726940434159,7.43,2571.6,2571.2,0.15458383]
[1726940434364,9.6105,2571.7,2571.2,0.15458383]
[1726940434584,10.57155,2571.7,2571.2,0.15458383]
[1726940435375,0.55,2571.6,2571.2,0.15458383]
[1726940436487,9.6105,2572.0,2571.2,0.15458383]
[1726940436653,0.55,2571.9,2571.2,0.15458383]
[1726940438722,0.55,2571.9,2571.4,3.0]
[1726940439023,9.6105,2572.0,2571.4,3.0]
[1726940439024,9.6105,2572.0,2571.5,0.15446306]
[1726940439176,11.31455,2572.0,2571.5,0.15446306]
[1726940446197,1.70405,2572.0,2571.5,0.15446306]
[1726940446691,1.70405,2572.0,2571.6,9.1836]
[1726940446889,1.70405,2572.0,2571.7,3.0]
[1726940447098,1.70405,2572.0,2571.7,3.15411745]
[1726940447484,7.43,2572.4,2571.9,9.1836]
[1726940447679,9.1448,2572.6,2572.0,3.0]
[1726940447998,9.1448,2572.6,2572.0,3.15399673]
[1726940448379,9.1448,2572.6,2572.0,2.75974713]
[1726940448663,9.1448,2572.6,2571.7,0.94456664]
[1726940448664,9.1448,2572.7,2571.3,9.1836]
[1726940448808,7.43,2572.8,2571.3,9.1836]
[1726940448809,0.62786215,2572.6,2571.3,9.1836]
[1726940449026,0.55,2572.4,2571.4,0.14908062]
[1726940449223,7.43,2572.8,2571.4,0.14908062]
[1726940449224,0.55,2572.2,2571.4,0.14908062]
[1726940449384,0.55,2572.0,2571.4,0.14908062]
[1726940449584,0.07786215,2571.9,2571.4,0.14908062]
[1726940449823,0.55,2571.8,2571.4,0.14908062]
[1726940450121,0.07786215,2571.7,2571.4,0.14908062]
[1726940450579,0.07786215,2571.7,2571.4,3.14908062]
[1726940450981,0.62786215,2572.0,2571.4,3.14908062]
[1726940451413,0.55,2572.0,2571.4,3.14908062]
[1726940452424,0.55,2571.8,2571.4,3.14908062]
[1726940452799,0.55,2572.0,2571.4,3.14908062]
[1726940453122,0.96948,2571.9,2571.6,3.0]
[1726940453307,16.5748,2572.4,2571.7,9.1836]
[1726940453507,16.5748,2572.4,2571.8,3.0]
[1726940453688,16.5748,2572.4,2571.8,3.14898967]
[1726940454686,0.55,2572.3,2571.8,3.14898967]
[1726940454884,1.51948,2572.3,2571.8,3.14898967]
[1726940455602,9.7058,2572.7,2572.0,3.0]
[1726940456198,9.7058,2572.7,2572.1,0.14877454]
[1726940456941,0.55,2572.6,2572.1,0.14877454]
[1726940464317,0.55,2572.4,2572.1,0.14877454]
[1726940464714,0.55,2572.6,2572.1,0.14877454]
[1726940464947,0.55,2572.4,2572.1,0.14877454]
[1726940470139,9.0308,2572.3,2572.1,0.14877454]
[1726940470323,0.55,2572.2,2572.1,0.14877454]
[1726940471322,0.62786215,2572.2,2572.1,0.14877454]
[1726940471646,0.55,2572.2,2572.1,0.14877454]
[1726940471843,1.50808,2572.2,2572.1,0.14877454]
[1726940472059,0.55,2572.4,2572.1,0.14877454]
[1726940474053,0.07786215,2572.3,2572.1,0.14877454]
[1726940474260,0.55,2572.2,2572.1,0.14877454]
[1726940474461,0.55,2572.2,2571.9,3.0]
[1726940474627,0.55,2572.2,2572.1,0.14853704]
[1726940474981,0.55,2572.4,2572.1,0.14853704]
[1726940475198,0.55,2572.2,2571.9,3.0]
[1726940476268,0.55,2572.4,2572.1,3.0]
[1726940476585,7.43,2572.8,2572.4,3.0]
[1726940476890,7.43,2573.4,2572.8,9.911]
[1726940477178,9.06786469,2573.5,2572.6,2.0]
[1726940477179,0.03706469,2573.5,2573.1,3.0]
[1726940478747,0.55,2573.4,2573.1,3.0]
[1726940480280,0.03706469,2573.5,2573.3,3.0]
[1726940485354,0.03706469,2573.5,2573.4,0.14766741]
[1726940488482,0.58706469,2573.5,2573.4,0.14766741]
[1726940492203,0.55,2573.4,2573.1,3.0]
[1726940493259,1.55995647,2573.4,2573.1,3.0]
[1726940496267,1.55995647,2573.4,2572.0,16.3499703]
[1726940496268,9.3494,2573.3,2572.7,9.3191]
[1726940496463,0.62786215,2573.2,2572.7,9.3191]
[1726940496706,0.55,2573.0,2572.0,9.3191]
[1726940496906,0.55,2573.0,2572.0,9.8032301]
[1726940497216,0.55,2573.0,2572.0,10.22056247]
[1726940497367,0.55,2572.6,2572.0,10.16056247]
[1726940497577,0.62786215,2572.6,2572.0,9.3191]
[1726940498644,0.55,2572.6,2572.1,3.0]
[1726940500475,0.55,2572.6,2572.2,0.14331723]
[1726940502724,0.62786215,2572.6,2572.2,0.14331723]
[1726940503017,9.3494,2572.3,2572.2,0.14331723]
[1726940503401,9.3494,2572.3,2571.9,3.0]
[1726940503618,9.3494,2572.3,2572.2,0.13383313]
[1726940503821,9.3494,2572.3,2571.9,3.0]
[1726940503990,9.3494,2572.3,2572.2,0.13383313]
[1726940504181,0.55,2572.2,2571.6,9.2321]
[1726940504678,0.62786215,2572.2,2571.6,9.2321]
[1726940506110,0.55,2572.2,2571.7,3.0]
[1726940507016,0.55,2572.5,2571.9,3.0]
[1726940507175,2.26359,2572.5,2571.9,3.0]
[1726940510979,0.55,2572.5,2572.0,3.0]
[1726940514716,0.55,2572.3,2571.6,9.2321]
[1726940514918,0.55,2572.3,2571.7,3.0]
[1726940515541,0.55,2572.3,2571.8,0.13426189]
[1726940517324,0.62786215,2572.3,2571.8,0.13426189]
[1726940517921,1.52837622,2572.3,2571.8,0.13426189]
[1726940518760,1.60623837,2572.3,2571.8,0.13426189]
[1726940519038,9.1559,2572.2,2571.8,0.13426189]
[1726940527733,1.52837622,2572.3,2571.8,0.13426189]
[1726940528039,9.6155,2572.4,2571.8,0.55839199]
[1726940528239,0.55,2572.3,2571.8,3.13426189]
[1726940528440,0.62786215,2572.3,2571.8,3.13426189]
[1726940530389,0.55,2572.1,2571.8,0.13426189]
[1726940530537,0.55,2571.9,2571.8,0.13426189]
[1726940530733,0.55,2571.9,2571.6,3.0]
[1726940533893,0.55,2571.7,2571.2,0.84146247]
[1726940534176,0.07786215,2571.6,2571.1,9.0522]
[1726940534378,0.55,2571.5,2571.1,9.0522]
[1726940536683,0.55,2571.5,2571.2,3.0]